Cogmind - Beta 17.1 @@@ ROGUE MODE // 2026.09.12 @ 15:45:30 Player: Figgis Result: Destroyed by S-10 Pest with Light Assault Rifle Performance ------------- Evolutions (0) 0 Regions Visited (3) 600 Robots Destroyed (19) 95 Value Destroyed (304) 304 Prototype IDs (0) 0 Alien Tech Used (0) 0 Bonus (0) 0 TOTAL SCORE: 999 Bonus ------- None Cogmind --------- Core Integrity 0/250 Matter 147/300 Energy 235/250 System Corruption 0% Temperature Cool (0) Movement Treading (160) Location -10/Subcaves Parts ------- > --- POWER (1) -------- Ion Engine > --- PROPULSION (2) --- Light Treads Light Treads > --- UTILITY (2) ------ Large Storage Unit Improved Terrain Scanner > --- WEAPON (2) ------- Medium Laser Assault Rifle > --- INVENTORY (15) --- Ion Engine Light Ion Engine Light Treads Light Treads Combat Airjet Combat Airjet Combat Airjet Scrap Suit Shock Absorption System Assault Rifle Light Cannon Grenade Launcher Mining Laser Peak State ------------ > --- POWER ------------ Ion Engine > --- PROPULSION ------- Light Treads Light Treads > --- UTILITY ---------- Large Storage Unit Improved Terrain Scanner > --- WEAPON ----------- Assault Rifle Light Cannon > --- INVENTORY -------- Ion Engine Light Ion Engine Light Treads Light Treads Light Treads Combat Airjet Combat Airjet Combat Airjet Scrap Suit Medium Laser Assault Rifle Light Cannon Grenade Launcher Mining Laser [Rating: 12] Favorites ----------- Power Ion Engine Engine Ion Engine Propulsion Light Treads Treads Light Treads Utility Large Storage Unit Device Terrain Scanner Storage Large Storage Unit Weapon Assault Rifle Energy Gun Medium Laser Ballistic Gun Assault Rifle Ballistic Cannon Light Cannon Special Weapon Mining Laser Build | -11 -10 -10 -10 ------- Run | Yrd Mat Min Sub Slots Evolved . | . . . . Power . | . . . . Propulsion . | . . . . Utility . | . . . . Weapon . | . . . . Parts Attached 14 | 3 8 3 . Power 1 | . 1 . . Engine 1 | . 1 . . Core . | . . . . Reactor . | . . . . Propulsion 4 | 2 2 . . Treads 4 | 2 2 . . Leg . | . . . . Wheel . | . . . . Hover . | . . . . Flight . | . . . . Utility 4 | . 3 1 . Device 2 | . 1 1 . Storage 2 | . 2 . . Processor . | . . . . Hackware . | . . . . Protection . | . . . . Artifact . | . . . . Weapon 5 | 1 2 2 . Energy Gun 1 | . 1 . . Energy Cannon . | . . . . Ballistic Gun 2 | 1 1 . . Ballistic Cannon 1 | . . 1 . Launcher . | . . . . Special Weapon 1 | . . 1 . Impact Weapon . | . . . . Slashing Weapon . | . . . . Piercing Weapon . | . . . . Special Melee Weapon . | . . . . Unidentified Prototypes . | . . . . Parts Lost 2 | . 1 . 1 Power . | . . . . Propulsion 1 | . 1 . . Utility . | . . . . Weapon 1 | . . . 1 Highest Loss Streak 1 | . 1 . 1 To Critical Strikes . | . . . . Average Backups 12 | 3 10 14 14 Power 1 | 1 1 2 2 Propulsion 4 | . 3 5 5 Utility . | . . 1 2 Weapon 5 | 1 4 5 5 Tool/Special . | . . . . Unused Backups 17 | . . 6 11 Power 2 | . . . 2 Propulsion 9 | . . 4 5 Utility 2 | . . . 2 Weapon 4 | . . 2 2 Tool/Special . | . . . . Average Slot Usage (%) 98 | . 97 100 100 Engine 13 | . 13 14 14 Treads 27 | . 27 28 28 Device 13 | . 12 14 14 Storage 13 | . 13 14 14 Energy Gun 3 | . 7 . . Ballistic Gun 18 | . 20 17 17 Ballistic Cannon 3 | . . 7 7 Special Weapon 1 | . . 2 3 Peak Build Rating 12 | 3 8 12 12 Average Rating 9 | 1 7 10 12 On Entrance 5 | . 3 8 12 Avg Prop Armor Cover (%) 30 | 30 30 . . Naked Turns . | . . . . Heaviest Build 31 | 2 30 31 31 Greatest Support 40 | 3 40 40 40 Greatest Overweight (x) 1 | . 1 . . Average Overweight (x) . | . . . . Largest Inventory Capacity 15 | 5 15 15 15 Average Capacity 14 | 5 14 15 15 Most Carried 15 | 5 15 15 15 Average Carried 12 | 3 10 14 14 Final Capacity 15 | 5 15 15 15 Final Carried 15 | 5 15 15 14 Class Distribution -------------------- 100% | Mutant Dominant Class ---------------- Mutant | -10/Materials Mutant | -10/Mines Mutant | -10/Subcaves Resources | -11 -10 -10 -10 ----------- Run | Yrd Mat Min Sub Matter Collected 571 | 230 222 44 75 Remotely . | . . . . Salvage Created 453 | . 322 19 112 Parts 38 | . 31 . 7 Haulers Intercepted 1 | . 1 . . Recyclers Shooed . | . . . . Parts Field Recycled . | . . . . Retrieved Matter . | . . . . Parts Self-Destructed 3 | . . . 3 Prevented . | . . . . Parts Restored . | . . . . Kills | -11 -10 -10 -10 ------- Run | Yrd Mat Min Sub Combat Hostiles Destroyed 13 | . 10 . 3 Guns 12 | . 10 . 2 Cannons 1 | . . . 1 Classes Destroyed 9 | . 6 1 2 Worker 1 | . . 1 . Builder 1 | . 1 . . Tunneler 1 | . 1 . . Hauler 1 | . 1 . . Watcher 2 | . 2 . . Swarmer 9 | . 9 . . Grunt 1 | . 1 . . Artisan 1 | . . . 1 Subdweller 3 | . . . 3 Best Kill Streak 6 | . 6 1 1 Combat Bots Only 6 | . 6 . 1 Max Kills in Single Turn 1 | . 1 1 1 Gunslinging . | . . . . Exploded . | . . . . Melee . | . . . . Uniques/NPCs Destroyed . | . . . . Combat | -11 -10 -10 -10 -------- Run | Yrd Mat Min Sub Hostile Shots Fired 93 | . 47 . 46 Missed 20 | . 14 . 6 Hits 73 | . 33 . 40 Projectile 73 | . 33 . 40 AOE 1 | . 1 . . Critical Strikes 2 | . 1 . 1 Damage Taken 1083 | . 524 . 559 Core 255 | . 167 . 88 Absorbed by Shields . | . . . . Core Remaining (%) 100 | 100 . . . Volleys Fired 86 | . 46 6 34 Largest 2 | . 2 2 2 Hottest 100 | . 70 100 100 Shots Fired 159 | . 92 8 59 Gun 128 | . 92 2 34 Cannon 18 | . . 2 16 Launcher . | . . . . Special 13 | . . 4 9 Kinetic 102 | . 49 4 49 Thermal 57 | . 43 4 10 Explosive . | . . . . Electromagnetic . | . . . . Robot Hit Streak 27 | . 7 5 27 Robot Miss Streak 7 | . 7 1 3 Penetration Max . | . . . . Secondary Targets 1 | . 1 . . Max Gunslinging Chain 1 | . 1 . . Shots Hit Robots 80 | . 45 3 32 Core Hits 30 | . 19 3 8 Critical Kills . | . . . . Critical Parts Destroyed 1 | . 1 . . Critical Strikes 4 | . 3 . 1 Burn 2 | . 2 . . Destroy 1 | . 1 . . Blast 1 | . . . 1 Melee Attacks . | . . . . Impact . | . . . . Slashing . | . . . . Piercing . | . . . . Sneak Attacks . | . . . . Combat Hostiles . | . . . . Follow-up Attacks . | . . . . Damage Inflicted 1102 | . 601 63 438 Guns 932 | . 601 26 305 Cannons 170 | . . 37 133 Explosions . | . . . . Melee . | . . . . Ramming . | . . . . Kinetic 851 | . 350 63 438 Thermal 251 | . 251 . . Explosive . | . . . . Electromagnetic . | . . . . Impact . | . . . . Slashing . | . . . . Piercing . | . . . . Highest Corruption . | . . . . Average Corruption . | . . . . Corruption Purged . | . . . . Corruption Blocked . | . . . . Overload Shots . | . . . . Overflow Damage . | . . . . Projectiles . | . . . . Explosions . | . . . . Melee . | . . . . Knockbacks 3 | . . . 3 Impact . | . . . . Kinetic 3 | . . . 3 Secondary . | . . . . Self-Inflicted Damage . | . . . . Shots . | . . . . Rammed . | . . . . Targets Rammed . | . . . . Kicked . | . . . . Crushed . | . . . . Highest Temperature 81 | . 81 22 . Average Temperature 24 | . 26 10 . Received Heat Transfer 123 | . 66 . 57 Siege Activations . | . . . . Martial Activations . | . . . . Shielding Activations . | . . . . Robots Disrupted . | . . . . Combat Hostiles . | . . . . Robots Corrupted . | . . . . Combat Hostiles . | . . . . Parts Fried . | . . . . Impact Corruptions . | . . . . Robots Melted . | . . . . Combat Hostiles . | . . . . Parts Melted 1 | . 1 . . Heat Transferred 888 | . 888 . . Parts Sabotaged . | . . . . Parts Stolen . | . . . . Parts Stripped . | . . . . Power Chain Reactions . | . . . . Alert | -11 -10 -10 -10 ------- Run | Yrd Mat Min Sub Maximum Alert Level . | . . . . Low Security (%) 100 | 100 100 100 . Level 1 . | . . . . Level 2 . | . . . . Level 3 . | . . . . Level 4 . | . . . . Level 5 . | . . . . High Security . | . . . . Max Security . | . . . . Peak Influence 130 | . 130 5 . Initial . | . . . . Average 13 | . 24 . . Influence Increases 318 | . 279 9 30 Destroy 0b10 Robot/C 200 | . 200 . . Destroy 0b10 Robot/NC 30 | . 25 5 . Destroy Leader 46 | . 46 . . Successful Hack 7 | . 7 . . Destroy Structure 5 | . 1 4 . Lose Combat Pursuer 30 | . . . 30 Influence Decreases 308 | . 279 9 20 Time Decay 288 | . 269 9 10 Lost Part 20 | . 10 . 10 Squads Dispatched . | . . . . Investigation . | . . . . Extermination . | . . . . Reinforcement . | . . . . Assault . | . . . . Garrison . | . . . . Intercept . | . . . . Searches Triggered . | . . . . Construction Impeded . | . . . . Haulers Reinforced . | . . . . Active Scanning Responses . | . . . . Cargo Convoy Interrupts . | . . . . Stealth | -11 -10 -10 -10 --------- Run | Yrd Mat Min Sub Distress Signals 1 | . 1 . . Communications Jammed . | . . . . Distress Signals . | . . . . Times Spotted 30 | . 21 . 9 Peak Tracking Total 6 | . 6 . 6 Tactical Retreats 1 | . . . 1 Traps | -11 -10 -10 -10 ------- Run | Yrd Mat Min Sub Traps Triggered . | . . . . Indirectly . | . . . . Trap Hack Attempts . | . . . . Triggered . | . . . . Disarmed . | . . . . Reprogrammed . | . . . . Reused . | . . . . Traps Extracted . | . . . . Installed . | . . . . Triggered . | . . . . Machines | -11 -10 -10 -10 ---------- Run | Yrd Mat Min Sub Machines Disabled . | . . . . Max in Single Turn . | . . . . Machines Repaired . | . . . . Machines Dismantled . | . . . . Machines Sabotaged . | . . . . Overloaded Fab Kills . | . . . . Hacking | -11 -10 -10 -10 --------- Run | Yrd Mat Min Sub Machines Accessed 6 | . 6 . . Terminals 6 | . 6 . . Fabricators . | . . . . Repair Stations . | . . . . Recycling Units . | . . . . Scanalyzers . | . . . . Garrison Access . | . . . . Total Hacks 14 | . 14 . . Successful 5 | . 5 . . Failed 9 | . 9 . . Catastrophic 1 | . 1 . . Database Lockouts . | . . . . Manual . | . . . . Terminals 14 | . 14 . . Fabricators . | . . . . Repair Stations . | . . . . Recycling Units . | . . . . Scanalyzers . | . . . . Garrison Access . | . . . . Terminal Hacks 5 | . 5 . . Branch Access Points 1 | . 1 . . Locate Traps 1 | . 1 . . Hauler Manifests 1 | . 1 . . Registered Components 1 | . 1 . . Zone Layout 1 | . 1 . . Fabricator Hacks . | . . . . Repair Station Hacks . | . . . . Recycling Unit Hacks . | . . . . Scanalyzer . | . . . . Garrison Access Hacks . | . . . . Unauthorized Hacks . | . . . . Terminals . | . . . . Fabricators . | . . . . Repair Stations . | . . . . Recycling Units . | . . . . Scanalyzers . | . . . . Garrison Access . | . . . . Data Cores Recovered . | . . . . Used . | . . . . Hacking Detections 4 | . 4 . . Full Trace Events . | . . . . Feedback Events . | . . . . Feedback Blocked . | . . . . Robot Schematics Acquired . | . . . . Robots Built . | . . . . Authchips . | . . . . Time . | . . . . Total Robot Build Rating . | . . . . Part Schematics Acquired . | . . . . Parts Built . | . . . . Authchips . | . . . . Time . | . . . . Total Part Build Rating . | . . . . Part Studies Acquired . | . . . . Parts Repaired . | . . . . Time . | . . . . Parts Recycled . | . . . . Recycled Matter . | . . . . Retrieved Matter . | . . . . Retrieved Components . | . . . . Parts Scanalyzed . | . . . . Part Schematics Acquired . | . . . . Parts Damaged . | . . . . Bothacking | -11 -10 -10 -10 ------------ Run | Yrd Mat Min Sub Used RIF Installer . | . . . . Robots Hacked . | . . . . Non-combat . | . . . . Combat . | . . . . Robot Hacks Applied . | . . . . Relay Couplers Released . | . . . . Fabnet Peak Effective % . | . . . . Robots Rewired . | . . . . Allies Hacked . | . . . . Hacks Repelled . | . . . . Allies | -11 -10 -10 -10 -------- Run | Yrd Mat Min Sub Total Allies . | . . . . Largest Group . | . . . . Highest-Rated Group . | . . . . Highest-Rated Ally . | . . . . Total Orders . | . . . . Ally Attacks . | . . . . Total Damage . | . . . . Kills . | . . . . Allies Corrupted . | . . . . Allies Melted . | . . . . Intel | -11 -10 -10 -10 ------- Run | Yrd Mat Min Sub Active Infowar (turns) 2660 | . 1224 1129 307 Terrain 2660 | . 1224 1129 307 Robot Analysis Total . | . . . . Derelict Logs Recovered 3 | . . 2 1 Drone Launches . | . . . . Drone Recoveries . | . . . . Exploration | -11 -10 -10 -10 ------------- Run | Yrd Mat Min Sub Turns Passed 2812 | 25 1350 1130 307 Spaces Moved 1474 | 31 736 594 113 Core 40 | 31 9 . . Treads 1434 | . 727 594 113 Legs . | . . . . Wheels . | . . . . Hover . | . . . . Flight . | . . . . Fastest Speed 50 | 50 50 160 160 Average Speed 157 | 50 158 160 160 Slowest Speed 240 | 50 240 160 160 Overloaded Moves . | . . . . Propulsion Burnouts . | . . . . Robots Hopped . | . . . . Potential Cave-ins . | . . . . Cave-ins Triggered . | . . . . Exploration Rate (%) 52 | 3 98 99 11 Regions Visited 3 Branch Regions 2 Pre-discovered Areas 1 | . . 1 . Known Exits Taken 1 | . 1 . . Unknown Exits Taken 2 | 1 . 1 . Scrap Searched 2 | . . 2 . Spaces Dug 4 | . . 4 . Terrain Destroyed 4 | . . 4 . Melee . | . . . . Projectile 4 | . . 4 . AOE . | . . . . Terrain Rammed . | . . . . Walls Destroyed . | . . . . Machines Disabled . | . . . . Actions | -11 -10 -10 -10 --------- Run | Yrd Mat Min Sub Total 1784 | 39 824 760 161 Wait 169 | . 16 146 7 Move 1471 | 30 735 593 113 Hop . | . . . . Pick Up 28 | 6 17 5 . Fast Attach 2 | 2 . . . Attach 8 | 1 6 . 1 Detach . | . . . . Swap 11 | . 2 3 6 Drop 9 | . 2 7 . Fire 86 | . 46 6 34 Melee . | . . . . Ram . | . . . . Kick . | . . . . Crush . | . . . . Escape Stasis . | . . . . Rewire . | . . . . Trap . | . . . . Miscellaneous . | . . . . Route ------- -11/Scrapyard -10/Materials (discovered 6 exits: [*Mat x3] / *Min x2 / [*Sub]) -10/Mines (discovered 4 exits: [*Mat x2] / [*Exi] / [*Sub]) -10/Subcaves History --------- Turn | Location | Event 13 | -11/Scrapyard | Discovered new exit (range 16) 26 | -11/Scrapyard | Entered Materials 214 | -10/Materials | Discovered new exit (range 13) 305 | -10/Materials | Build established: Mutant 404 | -10/Materials | Discovered new exit (range 15) 566 | -10/Materials | Core integrity fell below 50% 716 | -10/Materials | Discovered new exit (range 8) 830 | -10/Materials | Discovered new exit (range 10) 1015 | -10/Materials | Discovered new exit (range 8) 1173 | -10/Materials | Identified exit to Mines 1268 | -10/Materials | Discovered new exit (range 9) 1376 | -10/Materials | Entered Mines 1390 | -10/Mines | Met a Derelict bent on vengeance 1438 | -10/Mines | Assembled infested the area 1450 | -10/Mines | Learned 8 Materials zone layouts 1707 | -10/Mines | Discovered new exit (range 7) 1748 | -10/Mines | Found a Scrap Suit stashed away for nefarious purposes 1752 | -10/Mines | Found Scrap Suit 1781 | -10/Mines | Discovered new exit (range 5) 1789 | -10/Mines | Discovered new exit (range 10) 1983 | -10/Mines | Learned location of Storage (-7) 2037 | -10/Mines | Discovered new exit (range 5) 2506 | -10/Mines | Entered Subcaves 2507 | -10/Subcaves | Approached by a straggling Scientist 2562 | -10/Subcaves | Learned Materials security intel 2746 | -10/Subcaves | Core integrity fell below 20% 2813 | -10/Subcaves | Destroyed by S-10 Pest with Light Assault Rifle Last Messages --------------- 02602_ Z5-W2B(u) destroyed. 02603_ Subatomizers dissect the Tech Extrapolator. 02608_ I9-FS6(R) destroyed. 02611_ H0-9CI(R): "SUBHATE!" 02621_ H0-9CI(R) knocked back. 02627_ H0-9CI(R) Sub. Optics blasted off. 02627_ H0-9CI(R) knocked back. 02631_ Subatomizers dissect the Tech Extrapolator. 02636_ H0-9CI(R) destroyed. 02642_ Acquired 4 matter. 02643_ Acquired 26 matter. 02668_ Y1-257(u) tweaks Twisted Machinery. 02713_ Y1-257(u) builds Twisted Machinery. 02716_ Y1-257(u) tweaks Twisted Machinery. 02719_ Y1-257(u) builds Twisted Machinery. 02754_ PN-9VV(R) destroyed. 02757_ Acquired 44 matter. 02759_ Acquired 1 matter. 02799_ S-10 Pest knocked back. 02811_ Lgt. Cannon destroyed. Map ----- +----------------------------------------------------+ | ??????????#" "#?## ##?##???#?????????????????????? | | ?? ????#??## #??# "#??????????##????????????????? | | ??? ????###" """## ##??????#???#?????????????????? | | ?????????# """""" #????????#???????????????????? | | ?????????# ##### #????#?#?????????????????????? | | ?????#???## "#### ##???#???#????????????????????? | | ????????## # ###?#??????#??????????????????? | | ???????#??#" """###????#????????????????????? | | ???????#?##" " #???????#???????????????????? | | ??????????#" ##????#?????????#????????????? | | ???????#??#" ###???????????????????????????? | | ??????????## ##"###??????????#??????????????? | | ???????????###"#" ## ###??#####???????#?????????? | | ?????????????##"" "# #### #?????????????????? | | ??????????????##"" """ " ## ###??#???????? ?????? | | ??????????????#### # "" "! ##??????????????????? | | ?????#?#?????????#### ""##"& #######????????????? | | ???????????? ???????## ###"" " ### #???????? | | ?????? ????? ???#????# ###"" " ""???????? | | ????????????????????## ##?#"" " # # ## ##???????? | | ??????? ?????????#?## #?###" "" ######??????????? | | ???????????#???????# ##### """ #??????????? | | ??????????????????## ##"# "" #??????????? | | ??????#???????????#"" " #??????????? | | ???????????? ?????#""" s " #??????????? | | ?????????? ?????#?##### #@ ## " ## "????????? | | ??????????????????????# %##### ##?# ????????? | | ??????????????????????#s##???? #??? ???"????????? | | ????????????????#???#?#g##??"?""#????????????????? | | ??????????????????????#!%??#??""#?????#??????????? | | ??????????????? ?????? =%?????"" ???"????????????? | | ?????????????????????? *%&??????#????????????????? | | ????????#????????????? ! ???????????????????????? | | ?????????????????????? ????????"?? ??????????? | | ????????????????????? ???? ?????????????????? | | ?????????????????????####% ?????????????????????? | | ??????????????????? ?????% ?????????????????????? | | ?????????????????#??????? #????????????????????? | | ????????????????????????? #????????????????????? | | ??????????????????? ????? %#????????????????????? | | ????????????????????????? #????????????????????? | | ?????????????????????????? ?????????????????????? | | ?????????????????????????????????????????????????? | | ?????????????????????????????????????????????????? | | ?????????????????????????????????????????????????? | | ?????????????????????????????????????????????????? | | ?????????????????????????????????????????????????? | | ?????????????????????????????????????????????????? | | ?????????????????????????????????????????????????? | | ?????????????????????????????????????????????????? | +----------------------------------------------------+ Best States ------------- Heat Dissipation 25 Energy Generation 10 Energy Capacity 250 Matter Stores 300 Matter Capacity 300 Sight Range 16 Terrain Scan Range 16 Terrain Scan Density 10 Evasion (%) 50 Recoil Reduction 2 Item Schematics ----------------- None Robot Schematics ------------------ None Fabricated ------------ Nothing Repaired ---------- Nothing Studied --------- None Alien Tech Used ----------------- None Achievements -------------- None Challenges ------------ None Game ------ Seed ControlDamperReplicator Manual? 0 Play Time 00:14:36 Cumulative 219.6 hours Start 2026.09.12 @ 15:32:52 End 2026.09.12 @ 15:45:30 Sessions 1 Manual Loads 0 Difficulty Rogue Special Mode None Game No. 349 Rogue 346 Adventurer 3 Explorer 0 Win Type - Total 1 Types 1/0/0/0/0/0/0/0/0/0 Lore% 67 Gallery% 57 Achievement% 33 Wizard Run 0 Options --------- Layout 0 ASCII 0 Keyboard 0 Movement Mouse Keybinds 0 Fullscreen 2 Font 18/SmallcapsGlow Map View 76x50 Zoom Use 0% Tactical HUD 1 Map Filters NONE Filters NONE Steam 1 RUN: bf143ef0-1beb-4a8f-80b5-796579e7f16a